[Event "*** SCC Grand Prix: Titled Tuesday Blitz"]
[Site "Chess.com"]
[Date "2020.06.02"]
[Round "4"]
[White "DiamondCrusher22"]
[Black "Galileo22"]
[Result "0-1"]
[WhiteElo "1976"]
[BlackElo "2369"]
[TimeControl "180+1"]
[EndTime "10:40:43 PDT"]
[Termination "Galileo22 won by resignation"]

1. e4 {[%clk 0:03:00.9]} 1... c5 {[%clk 0:02:57.8]} 2. Nf3 {[%clk 0:03:00.8]}
2... d6 {[%clk 0:02:57.2]} 3. c3 {[%clk 0:03:01.2]} 3... Nf6 {[%clk 0:02:56.5]}
4. Be2 {[%clk 0:03:00.6]} 4... g6 {[%clk 0:02:46.1]} 5. O-O {[%clk 0:02:58.9]}
5... Bg7 {[%clk 0:02:46.4]} 6. Bb5+ {[%clk 0:02:57]} 6... Nbd7 {[%clk
0:02:32.5]} 7. e5 {[%clk 0:02:55.4]} 7... dxe5 {[%clk 0:02:32.4]} 8. Nxe5 {[%clk
0:02:54]} 8... O-O {[%clk 0:02:32.6]} 9. Nxd7 {[%clk 0:02:49.5]} 9... Nxd7
{[%clk 0:02:27.9]} 10. d3 {[%clk 0:02:35.3]} 10... a6 {[%clk 0:02:17.9]} 11. Ba4
{[%clk 0:02:32.1]} 11... Ne5 {[%clk 0:02:11.9]} 12. Bc2 {[%clk 0:02:31]} 12...
Nc6 {[%clk 0:02:11.1]} 13. Be3 {[%clk 0:02:29.3]} 13... b6 {[%clk 0:02:09.4]}
14. Nd2 {[%clk 0:02:27.3]} 14... Bb7 {[%clk 0:02:08.4]} 15. Re1 {[%clk
0:02:22.5]} 15... Qc7 {[%clk 0:02:03.6]} 16. Qg4 {[%clk 0:02:14]} 16... Rad8
{[%clk 0:01:58.5]} 17. Nf3 {[%clk 0:01:55.3]} 17... e5 {[%clk 0:01:42.2]} 18.
Qh4 {[%clk 0:01:36.1]} 18... f6 {[%clk 0:01:28.4]} 19. Bh6 {[%clk 0:01:33.8]}
19... Ne7 {[%clk 0:01:15.2]} 20. Bxg7 {[%clk 0:01:13.2]} 20... Kxg7 {[%clk
0:01:16.1]} 21. Nd2 {[%clk 0:00:53.6]} 21... Nd5 {[%clk 0:01:10]} 22. g3 {[%clk
0:00:28.2]} 22... Ne7 {[%clk 0:00:45.4]} 23. Rad1 {[%clk 0:00:20.4]} 23... Nf5
{[%clk 0:00:39.3]} 24. Qg4 {[%clk 0:00:18.9]} 24... h5 {[%clk 0:00:35.5]} 25.
Qe2 {[%clk 0:00:18.3]} 25... h4 {[%clk 0:00:30.4]} 26. Ne4 {[%clk 0:00:17.9]}
26... hxg3 {[%clk 0:00:26.1]} 27. fxg3 {[%clk 0:00:16.5]} 27... Ne7 {[%clk
0:00:18.8]} 28. Rf1 {[%clk 0:00:16]} 28... Qc6 {[%clk 0:00:18.5]} 29. Qf3 {[%clk
0:00:11.2]} 29... f5 {[%clk 0:00:11.2]} 30. Ng5 {[%clk 0:00:09.5]} 30... Qxf3
{[%clk 0:00:09.7]} 31. Nxf3 {[%clk 0:00:09.1]} 31... Nc6 {[%clk 0:00:09.9]} 32.
Rfe1 {[%clk 0:00:07.7]} 32... Kf6 {[%clk 0:00:09.8]} 33. Kf2 {[%clk 0:00:07.5]}
33... Rh8 {[%clk 0:00:09]} 34. Rh1 {[%clk 0:00:05]} 34... Nb8 {[%clk 0:00:06.8]}
35. h4 {[%clk 0:00:04.4]} 35... Bxf3 {[%clk 0:00:06.4]} 36. Kxf3 {[%clk
0:00:04]} 36... Nc6 {[%clk 0:00:07.3]} 37. Rhe1 {[%clk 0:00:03.3]} 37... b5
{[%clk 0:00:07.1]} 38. d4 {[%clk 0:00:03.7]} 38... exd4 {[%clk 0:00:06]} 39. c4
{[%clk 0:00:04]} 39... b4 {[%clk 0:00:05.8]} 40. Ba4 {[%clk 0:00:03.9]} 40...
Ne5+ {[%clk 0:00:06.1]} 41. Kf2 {[%clk 0:00:03.9]} 41... Ng4+ {[%clk 0:00:06.1]}
42. Kf3 {[%clk 0:00:04.4]} 42... Rh7 {[%clk 0:00:06.2]} 43. b3 {[%clk
0:00:03.5]} 43... Re7 {[%clk 0:00:06.2]} 44. Rxe7 {[%clk 0:00:03.1]} 44... Kxe7
{[%clk 0:00:07.1]} 45. Kf4 {[%clk 0:00:02.3]} 45... Kf6 {[%clk 0:00:06.9]} 46.
Re1 {[%clk 0:00:02.6]} 46... Ne3 {[%clk 0:00:06]} 47. h5 {[%clk 0:00:02.6]}
47... Ng2+ {[%clk 0:00:06.1]} 48. Kf3 {[%clk 0:00:02.5]} 48... Nxe1+ {[%clk
0:00:07]} 49. Ke2 {[%clk 0:00:02.8]} 49... Nc2 {[%clk 0:00:06.9]} 50. Kd2 {[%clk
0:00:03.1]} 50... Ne3 {[%clk 0:00:06.6]} 51. Kd3 {[%clk 0:00:03.2]} 51... gxh5
{[%clk 0:00:06.4]} 52. g4 {[%clk 0:00:03.3]} 52... hxg4 {[%clk 0:00:06.8]} 53.
a3 {[%clk 0:00:04.2]} 53... a5 {[%clk 0:00:05.9]} 54. axb4 {[%clk 0:00:03.8]}
54... axb4 {[%clk 0:00:06.8]} 55. Bd7 {[%clk 0:00:03.5]} 55... Ke5 {[%clk
0:00:07.7]} 56. Bxf5 {[%clk 0:00:03]} 56... Kxf5 {[%clk 0:00:08.6]} 57. Ke2
{[%clk 0:00:03.2]} 57... Kf4 {[%clk 0:00:08.8]} 0-1

[Event "*** SCC Grand Prix: Titled Tuesday Blitz"]
[Site "Chess.com"]
[Date "2020.06.02"]
[Round "4"]
[White "Harsha_Bharathakoti"]
[Black "GMBenjaminBok"]
[Result "1/2-1/2"]
[WhiteElo "2733"]
[BlackElo "2908"]
[TimeControl "180+1"]
[EndTime "10:40:44 PDT"]
[Termination "Game drawn by agreement"]

1. c4 {[%clk 0:03:00.4]} 1... e6 {[%clk 0:02:58.9]} 2. d4 {[%clk 0:02:59.3]}
2... d5 {[%clk 0:02:59.3]} 3. Nf3 {[%clk 0:02:59.5]} 3... Nf6 {[%clk 0:02:58.7]}
4. Nc3 {[%clk 0:02:59.7]} 4... c6 {[%clk 0:02:58.6]} 5. e3 {[%clk 0:02:57.8]}
5... Nbd7 {[%clk 0:02:58.6]} 6. Qc2 {[%clk 0:02:57.8]} 6... Bd6 {[%clk 0:02:59]}
7. Be2 {[%clk 0:02:57.8]} 7... O-O {[%clk 0:02:56.8]} 8. O-O {[%clk 0:02:57.4]}
8... b6 {[%clk 0:02:53]} 9. b3 {[%clk 0:02:55.7]} 9... Bb7 {[%clk 0:02:52.1]}
10. Bb2 {[%clk 0:02:56.3]} 10... Qe7 {[%clk 0:02:52.5]} 11. Rfd1 {[%clk
0:02:47.6]} 11... Rfd8 {[%clk 0:02:48.1]} 12. Rac1 {[%clk 0:02:46.7]} 12... Rac8
{[%clk 0:02:46]} 13. Qb1 {[%clk 0:02:37.2]} 13... h6 {[%clk 0:02:21.6]} 14. cxd5
{[%clk 0:02:14.9]} 14... exd5 {[%clk 0:02:19.3]} 15. Bf1 {[%clk 0:02:10.8]}
15... Re8 {[%clk 0:02:16.6]} 16. g3 {[%clk 0:02:04.6]} 16... Rcd8 {[%clk
0:02:09.8]} 17. Bg2 {[%clk 0:02:00.4]} 17... Ne4 {[%clk 0:01:58.2]} 18. Nxe4
{[%clk 0:01:27.8]} 18... dxe4 {[%clk 0:01:59.1]} 19. Nd2 {[%clk 0:01:27.9]}
19... f5 {[%clk 0:01:57.3]} 20. Nc4 {[%clk 0:01:27.6]} 20... Bb8 {[%clk
0:01:54.5]} 21. Qc2 {[%clk 0:01:20]} 21... Qe6 {[%clk 0:01:03.4]} 22. a4 {[%clk
0:00:44.7]} 22... Rc8 {[%clk 0:00:28.7]} 23. Qe2 {[%clk 0:00:33.7]} 23... Nf6
{[%clk 0:00:20.4]} 24. Ne5 {[%clk 0:00:20.4]} 24... c5 {[%clk 0:00:19.5]} 25.
Bh3 {[%clk 0:00:16.3]} 25... Bd5 {[%clk 0:00:16.3]} 26. Nc4 {[%clk 0:00:12.6]}
26... cxd4 {[%clk 0:00:11.2]} 27. Bxd4 {[%clk 0:00:13.5]} 27... Nd7 {[%clk
0:00:10.6]} 28. Qh5 {[%clk 0:00:13]} 28... Rf8 {[%clk 0:00:08.7]} 29. Bb2 {[%clk
0:00:10.5]} 29... Bxc4 {[%clk 0:00:08]} 30. Rxc4 {[%clk 0:00:09.8]} 30... Rxc4
{[%clk 0:00:08]} 31. bxc4 {[%clk 0:00:10.7]} 31... Ne5 {[%clk 0:00:06.9]} 32.
Bxe5 {[%clk 0:00:07.7]} 32... Bxe5 {[%clk 0:00:07.5]} 33. Rd5 {[%clk 0:00:08.4]}
33... Kh7 {[%clk 0:00:06.5]} 34. g4 {[%clk 0:00:06.6]} 34... g6 {[%clk
0:00:06.1]} 35. gxf5 {[%clk 0:00:07.3]} 35... gxf5 {[%clk 0:00:05.5]} 36. Kf1
{[%clk 0:00:06.1]} 36... Rf6 {[%clk 0:00:01.8]} 37. Qd1 {[%clk 0:00:03.7]} 37...
Rf8 {[%clk 0:00:02]} 38. Rd7+ {[%clk 0:00:03.5]} 38... Rf7 {[%clk 0:00:02.2]}
39. Rxf7+ {[%clk 0:00:02.2]} 39... Qxf7 {[%clk 0:00:03.1]} 40. Qd5 {[%clk
0:00:02.8]} 40... Qxd5 {[%clk 0:00:01.6]} 41. Bxf5+ {[%clk 0:00:03.2]} 41... Kg7
{[%clk 0:00:02.2]} 42. cxd5 {[%clk 0:00:04.1]} 42... Bxh2 {[%clk 0:00:02.5]} 43.
Bxe4 {[%clk 0:00:04.8]} 43... Bd6 {[%clk 0:00:03.1]} 44. Ke2 {[%clk 0:00:04]}
44... Kf6 {[%clk 0:00:03.2]} 45. f4 {[%clk 0:00:04.3]} 45... h5 {[%clk
0:00:03.4]} 46. Bd3 {[%clk 0:00:02.3]} 46... h4 {[%clk 0:00:03]} 47. Kf3 {[%clk
0:00:03]} 47... h3 {[%clk 0:00:03.4]} 48. Bf1 {[%clk 0:00:01.5]} 48... h2 {[%clk
0:00:03.7]} 49. Kg2 {[%clk 0:00:01.6]} 49... Bc5 {[%clk 0:00:03.3]} 50. e4
{[%clk 0:00:02.3]} 50... Be3 {[%clk 0:00:03.4]} 51. e5+ {[%clk 0:00:02.5]} 51...
Kf5 {[%clk 0:00:03.3]} 52. Bd3+ {[%clk 0:00:02.4]} 52... Kxf4 {[%clk 0:00:03.3]}
53. d6 {[%clk 0:00:03.1]} 53... Bc5 {[%clk 0:00:03.6]} 54. d7 {[%clk 0:00:03.4]}
54... Be7 {[%clk 0:00:03.5]} 55. e6 {[%clk 0:00:04.3]} 55... Ke5 {[%clk
0:00:03.8]} 56. Kxh2 {[%clk 0:00:04.1]} 56... Kxe6 {[%clk 0:00:03.8]} 57. Bb5
{[%clk 0:00:04.8]} 57... Kd6 {[%clk 0:00:04.1]} 58. Kg2 {[%clk 0:00:04.9]}
1/2-1/2

[Event "*** SCC Grand Prix: Titled Tuesday Blitz"]
[Site "Chess.com"]
[Date "2020.06.02"]
[Round "4"]
[White "Pomegranate988"]
[Black "Rakesh"]
[Result "0-1"]
[WhiteElo "2537"]
[BlackElo "2348"]
[TimeControl "180+1"]
[EndTime "10:40:44 PDT"]
[Termination "Rakesh won on time"]

1. Nf3 {[%clk 0:02:59.9]} 1... c5 {[%clk 0:03:00.9]} 2. g3 {[%clk 0:02:58.5]}
2... d5 {[%clk 0:02:59.5]} 3. Bg2 {[%clk 0:02:58.5]} 3... Nc6 {[%clk 0:02:59.7]}
4. d4 {[%clk 0:02:57.9]} 4... Nf6 {[%clk 0:02:59.4]} 5. O-O {[%clk 0:02:57.7]}
5... Bg4 {[%clk 0:02:58.8]} 6. Ne5 {[%clk 0:02:56.5]} 6... Bh5 {[%clk 0:02:59]}
7. Nxc6 {[%clk 0:02:55.2]} 7... bxc6 {[%clk 0:02:59.9]} 8. dxc5 {[%clk
0:02:55.4]} 8... e5 {[%clk 0:02:59.9]} 9. c4 {[%clk 0:02:53.9]} 9... Bxc5 {[%clk
0:02:56.3]} 10. cxd5 {[%clk 0:02:52.3]} 10... cxd5 {[%clk 0:02:55.9]} 11. Nc3
{[%clk 0:02:47.6]} 11... O-O {[%clk 0:02:50.6]} 12. Nxd5 {[%clk 0:02:45.2]}
12... Nxd5 {[%clk 0:02:50.9]} 13. Qxd5 {[%clk 0:02:44.8]} 13... Qxd5 {[%clk
0:02:31.6]} 14. Bxd5 {[%clk 0:02:44.1]} 14... Bxe2 {[%clk 0:02:32.1]} 15. Re1
{[%clk 0:02:21.8]} 15... Rad8 {[%clk 0:02:10.2]} 16. Rxe2 {[%clk 0:02:09.4]}
16... Rxd5 {[%clk 0:02:08.1]} 17. Bd2 {[%clk 0:02:09.4]} 17... f6 {[%clk
0:02:07.7]} 18. b4 {[%clk 0:02:04.6]} 18... Bd4 {[%clk 0:02:02.5]} 19. Rc1
{[%clk 0:02:03.3]} 19... Rfd8 {[%clk 0:01:59.6]} 20. Be1 {[%clk 0:01:52.7]}
20... Kf7 {[%clk 0:01:52.3]} 21. Kg2 {[%clk 0:01:51]} 21... Ke6 {[%clk
0:01:51.2]} 22. g4 {[%clk 0:01:48.2]} 22... g6 {[%clk 0:01:51]} 23. f4 {[%clk
0:01:43.4]} 23... h5 {[%clk 0:01:34.3]} 24. gxh5 {[%clk 0:01:34.1]} 24... gxh5
{[%clk 0:01:35.2]} 25. Bg3 {[%clk 0:01:34.1]} 25... Rg8 {[%clk 0:01:30.3]} 26.
Kh3 {[%clk 0:01:26.1]} 26... Rg4 {[%clk 0:01:20.2]} 27. fxe5 {[%clk 0:01:19]}
27... fxe5 {[%clk 0:01:21.1]} 28. Rc7 {[%clk 0:00:59]} 28... Bb6 {[%clk
0:01:19.2]} 29. Rh7 {[%clk 0:00:54.4]} 29... Rg5 {[%clk 0:01:03.1]} 30. a4
{[%clk 0:00:46.8]} 30... Rf5 {[%clk 0:00:47]} 31. a5 {[%clk 0:00:41.7]} 31...
Bd4 {[%clk 0:00:47.2]} 32. Rc2 {[%clk 0:00:41.6]} 32... Rb5 {[%clk 0:00:46.5]}
33. Be1 {[%clk 0:00:33.6]} 33... Kd5 {[%clk 0:00:42.7]} 34. Kh4 {[%clk 0:00:32]}
34... Ke4 {[%clk 0:00:38.5]} 35. Rxh5 {[%clk 0:00:30.5]} 35... Rxh5+ {[%clk
0:00:35.2]} 36. Kxh5 {[%clk 0:00:30.6]} 36... Kd3 {[%clk 0:00:36.1]} 37. Rg2
{[%clk 0:00:29.6]} 37... e4+ {[%clk 0:00:36.3]} 38. Kg6 {[%clk 0:00:28.4]} 38...
e3 {[%clk 0:00:36.4]} 39. h4 {[%clk 0:00:28.3]} 39... Bc3 {[%clk 0:00:32.5]} 40.
Bg3 {[%clk 0:00:26.4]} 40... Rxb4 {[%clk 0:00:30.7]} 41. h5 {[%clk 0:00:23.5]}
41... e2 {[%clk 0:00:31.2]} 42. Bf2 {[%clk 0:00:22.2]} 42... Rf4 {[%clk
0:00:29.7]} 43. Bg3 {[%clk 0:00:11.6]} 43... Rg4+ {[%clk 0:00:22]} 44. Kf5
{[%clk 0:00:10.8]} 44... e1=Q {[%clk 0:00:18.2]} 45. Bxe1 {[%clk 0:00:09.3]}
45... Rxg2 {[%clk 0:00:19.1]} 46. Bxc3 {[%clk 0:00:09.2]} 46... Kxc3 {[%clk
0:00:20]} 47. h6 {[%clk 0:00:09.2]} 47... Kb4 {[%clk 0:00:20.4]} 48. a6 {[%clk
0:00:06.9]} 48... Kb5 {[%clk 0:00:19.9]} 49. h7 {[%clk 0:00:06.8]} 49... Rh2
{[%clk 0:00:20.1]} 0-1

[Event "*** SCC Grand Prix: Titled Tuesday Blitz"]
[Site "Chess.com"]
[Date "2020.06.02"]
[Round "4"]
[White "Jungle_Jaguar"]
[Black "saraswathii"]
[Result "0-1"]
[WhiteElo "2594"]
[BlackElo "2368"]
[TimeControl "180+1"]
[EndTime "10:40:44 PDT"]
[Termination "saraswathii won by resignation"]

1. e4 {[%clk 0:03:00.9]} 1... c5 {[%clk 0:02:59.3]} 2. Nf3 {[%clk 0:03:00.6]}
2... e6 {[%clk 0:02:59.5]} 3. d4 {[%clk 0:03:00.4]} 3... cxd4 {[%clk 0:03:00.4]}
4. Nxd4 {[%clk 0:03:01.3]} 4... Nf6 {[%clk 0:03:00.5]} 5. Nc3 {[%clk 0:03:01.1]}
5... Nc6 {[%clk 0:02:59.8]} 6. Be3 {[%clk 0:02:58.1]} 6... Bb4 {[%clk
0:02:58.7]} 7. Bd3 {[%clk 0:02:57]} 7... d5 {[%clk 0:02:58.3]} 8. Nxc6 {[%clk
0:02:55]} 8... bxc6 {[%clk 0:02:57.6]} 9. exd5 {[%clk 0:02:55.4]} 9... exd5
{[%clk 0:02:57.2]} 10. Bd4 {[%clk 0:02:54.3]} 10... O-O {[%clk 0:02:56]} 11. O-O
{[%clk 0:02:54.1]} 11... Be6 {[%clk 0:02:54.6]} 12. Ne2 {[%clk 0:02:36.3]} 12...
Bd6 {[%clk 0:02:49.1]} 13. Ng3 {[%clk 0:02:23.1]} 13... c5 {[%clk 0:02:46.1]}
14. Be3 {[%clk 0:02:22.4]} 14... Ng4 {[%clk 0:02:35.6]} 15. Be2 {[%clk
0:01:36.6]} 15... Nxe3 {[%clk 0:02:34.6]} 16. fxe3 {[%clk 0:01:37]} 16... Qg5
{[%clk 0:02:27.1]} 17. Qe1 {[%clk 0:01:36]} 17... Qxe3+ {[%clk 0:02:26.1]} 18.
Kh1 {[%clk 0:01:36.3]} 18... Rfe8 {[%clk 0:02:20.6]} 19. Rf3 {[%clk 0:01:33.7]}
19... Qe5 {[%clk 0:02:16.2]} 20. Bb5 {[%clk 0:01:32.5]} 20... Reb8 {[%clk
0:02:10.6]} 21. Bc6 {[%clk 0:01:29.9]} 21... Qxb2 {[%clk 0:02:03.7]} 22. Bxa8
{[%clk 0:01:26.2]} 22... Rxa8 {[%clk 0:02:04.6]} 23. Nf5 {[%clk 0:01:13.4]}
23... Bc7 {[%clk 0:01:44.3]} 24. Ne3 {[%clk 0:01:03.4]} 24... Qe5 {[%clk
0:01:37.9]} 25. Nf1 {[%clk 0:01:00.6]} 25... Qd6 {[%clk 0:01:35.5]} 26. c3
{[%clk 0:00:56.6]} 26... h6 {[%clk 0:01:24.5]} 27. Qh4 {[%clk 0:00:54.8]} 27...
Rb8 {[%clk 0:01:19.5]} 28. Rd1 {[%clk 0:00:39.8]} 28... Qd7 {[%clk 0:01:08.8]}
29. Ne3 {[%clk 0:00:32.5]} 29... Rb2 {[%clk 0:01:03.2]} 30. a4 {[%clk 0:00:30]}
30... Be5 {[%clk 0:00:54]} 31. Nxd5 {[%clk 0:00:17.8]} 31... Bxd5 {[%clk
0:00:52.7]} 32. Rfd3 {[%clk 0:00:18.5]} 32... Bxg2+ {[%clk 0:00:51]} 33. Kg1
{[%clk 0:00:19]} 33... Qc7 {[%clk 0:00:45.1]} 34. Rd8+ {[%clk 0:00:15.6]} 34...
Kh7 {[%clk 0:00:43.8]} 35. R8d7 {[%clk 0:00:14.7]} 35... Bxh2+ {[%clk
0:00:37.4]} 36. Qxh2 {[%clk 0:00:14.9]} 36... Qxh2+ {[%clk 0:00:37.1]} 37. Kxh2
{[%clk 0:00:15.5]} 37... Bf3+ {[%clk 0:00:37.3]} 38. Kg3 {[%clk 0:00:14.1]}
38... Bxd1 {[%clk 0:00:36.7]} 39. Rxd1 {[%clk 0:00:13.3]} 39... Rb3 {[%clk
0:00:34.9]} 40. Rd7 {[%clk 0:00:13]} 40... Rxc3+ {[%clk 0:00:34.7]} 41. Kf4
{[%clk 0:00:13.6]} 41... Rc4+ {[%clk 0:00:34.8]} 42. Ke5 {[%clk 0:00:13.7]}
42... Rxa4 {[%clk 0:00:35.4]} 43. Rxf7 {[%clk 0:00:13.4]} 43... c4 {[%clk
0:00:34.4]} 44. Kd4 {[%clk 0:00:13.5]} 44... Kg6 {[%clk 0:00:33.1]} 45. Rc7
{[%clk 0:00:14.2]} 45... h5 {[%clk 0:00:33.3]} 46. Rc5 {[%clk 0:00:14.2]} 46...
h4 {[%clk 0:00:32.7]} 47. Re5 {[%clk 0:00:14.4]} 47... Kf6 {[%clk 0:00:28.5]}
48. Rh5 {[%clk 0:00:13.6]} 48... g5 {[%clk 0:00:28.2]} 49. Ke4 {[%clk
0:00:12.3]} 49... c3+ {[%clk 0:00:27.7]} 50. Kd3 {[%clk 0:00:12.3]} 50... Ra3
{[%clk 0:00:27.1]} 51. Ke4 {[%clk 0:00:11.7]} 51... c2 {[%clk 0:00:26.6]} 52.
Rh6+ {[%clk 0:00:12.2]} 52... Kg7 {[%clk 0:00:25.9]} 53. Rc6 {[%clk 0:00:13.1]}
53... Ra2 {[%clk 0:00:25.2]} 54. Kf5 {[%clk 0:00:13.6]} 54... h3 {[%clk
0:00:23.5]} 55. Kxg5 {[%clk 0:00:14]} 55... Kf7 {[%clk 0:00:21.2]} 56. Rf6+
{[%clk 0:00:04.4]} 56... Ke7 {[%clk 0:00:19.7]} 57. Rf1 {[%clk 0:00:05.1]} 57...
h2 {[%clk 0:00:19]} 58. Kg4 {[%clk 0:00:04.8]} 58... Rb2 {[%clk 0:00:18.8]} 59.
Rc1 {[%clk 0:00:04.9]} 59... Rb1 {[%clk 0:00:18.3]} 0-1

[Event "*** SCC Grand Prix: Titled Tuesday Blitz"]
[Site "Chess.com"]
[Date "2020.06.02"]
[Round "4"]
[White "CMS13"]
[Black "ketster"]
[Result "1/2-1/2"]
[WhiteElo "2223"]
[BlackElo "2419"]
[TimeControl "180+1"]
[EndTime "10:40:45 PDT"]
[Termination "Game drawn - insufficient material"]

1. e4 {[%clk 0:03:00.9]} 1... e5 {[%clk 0:02:59.5]} 2. Bc4 {[%clk 0:03:00.4]}
2... Nf6 {[%clk 0:02:59.2]} 3. Nc3 {[%clk 0:02:59.4]} 3... Nxe4 {[%clk
0:02:58.6]} 4. Qh5 {[%clk 0:02:59]} 4... Nd6 {[%clk 0:02:54]} 5. Qxe5+ {[%clk
0:02:56.2]} 5... Qe7 {[%clk 0:02:52.7]} 6. Qxe7+ {[%clk 0:02:56.2]} 6... Bxe7
{[%clk 0:02:53.6]} 7. Bb3 {[%clk 0:02:56.3]} 7... Nf5 {[%clk 0:02:49.6]} 8. Nge2
{[%clk 0:02:51]} 8... c6 {[%clk 0:02:47.4]} 9. O-O {[%clk 0:02:50.6]} 9... O-O
{[%clk 0:02:46.7]} 10. d3 {[%clk 0:02:48.7]} 10... d5 {[%clk 0:02:46.7]} 11. Bf4
{[%clk 0:02:47.3]} 11... Nd7 {[%clk 0:02:43.4]} 12. Ng3 {[%clk 0:02:47.1]} 12...
Nc5 {[%clk 0:02:34]} 13. Nxf5 {[%clk 0:02:44.7]} 13... Bxf5 {[%clk 0:02:33.8]}
14. Rfe1 {[%clk 0:02:44.4]} 14... Nxb3 {[%clk 0:02:28]} 15. axb3 {[%clk
0:02:45.3]} 15... Bf6 {[%clk 0:02:23]} 16. Be5 {[%clk 0:02:38.8]} 16... Bxe5
{[%clk 0:01:57.8]} 17. Rxe5 {[%clk 0:02:37.9]} 17... Be6 {[%clk 0:01:57.7]} 18.
f4 {[%clk 0:02:36.5]} 18... g6 {[%clk 0:01:57]} 19. Ne2 {[%clk 0:02:26.3]} 19...
Rfe8 {[%clk 0:01:54.9]} 20. Nd4 {[%clk 0:02:24.3]} 20... Bd7 {[%clk 0:01:54.8]}
21. Rae1 {[%clk 0:02:23.4]} 21... Kf8 {[%clk 0:01:53.5]} 22. Kf2 {[%clk
0:02:21.5]} 22... f6 {[%clk 0:01:51.5]} 23. R5e3 {[%clk 0:01:58.5]} 23... Rxe3
{[%clk 0:01:40.7]} 24. Rxe3 {[%clk 0:01:58.5]} 24... Re8 {[%clk 0:01:40.8]} 25.
b4 {[%clk 0:01:47.9]} 25... b6 {[%clk 0:01:37]} 26. c4 {[%clk 0:01:36.2]} 26...
Rxe3 {[%clk 0:01:28.3]} 27. Kxe3 {[%clk 0:01:35.8]} 27... Ke7 {[%clk 0:01:28.5]}
28. c5 {[%clk 0:01:33.7]} 28... Be8 {[%clk 0:01:20.7]} 29. g4 {[%clk 0:01:27.5]}
29... Kd7 {[%clk 0:01:17.6]} 30. g5 {[%clk 0:01:22.2]} 30... fxg5 {[%clk
0:01:11.6]} 31. fxg5 {[%clk 0:01:21.8]} 31... Kc7 {[%clk 0:01:06.3]} 32. Kf4
{[%clk 0:01:19.5]} 32... a5 {[%clk 0:01:06]} 33. Ne6+ {[%clk 0:00:58.1]} 33...
Kb7 {[%clk 0:01:00.4]} 34. bxa5 {[%clk 0:00:57.6]} 34... bxa5 {[%clk 0:00:50.7]}
35. Nf8 {[%clk 0:00:56.7]} 35... Ka6 {[%clk 0:00:40.8]} 36. Nxh7 {[%clk
0:00:51.2]} 36... Kb5 {[%clk 0:00:40.7]} 37. d4 {[%clk 0:00:49.2]} 37... Kc4
{[%clk 0:00:40.6]} 38. Ke5 {[%clk 0:00:48.7]} 38... Kb3 {[%clk 0:00:38.2]} 39.
Nf6 {[%clk 0:00:48.7]} 39... Kxb2 {[%clk 0:00:30]} 40. Nxe8 {[%clk 0:00:32]}
40... a4 {[%clk 0:00:29.7]} 41. Kd6 {[%clk 0:00:29.1]} 41... a3 {[%clk
0:00:29.7]} 42. Kxc6 {[%clk 0:00:29.2]} 42... a2 {[%clk 0:00:29.9]} 43. Kd7
{[%clk 0:00:24.8]} 43... a1=Q {[%clk 0:00:29.2]} 44. c6 {[%clk 0:00:25.2]} 44...
Qa4 {[%clk 0:00:23.1]} 45. Kd6 {[%clk 0:00:21.5]} 45... Qxd4 {[%clk 0:00:16.2]}
46. c7 {[%clk 0:00:21.4]} 46... Qc4 {[%clk 0:00:13.1]} 47. Kd7 {[%clk
0:00:20.5]} 47... d4 {[%clk 0:00:12.5]} 48. c8=Q {[%clk 0:00:18.3]} 48... Qxc8+
{[%clk 0:00:12.2]} 49. Kxc8 {[%clk 0:00:19.2]} 49... d3 {[%clk 0:00:12.5]} 50.
Nd6 {[%clk 0:00:18.7]} 50... Kc3 {[%clk 0:00:08.1]} 51. Ne4+ {[%clk 0:00:16.2]}
51... Kd4 {[%clk 0:00:08.3]} 52. Nd2 {[%clk 0:00:16.2]} 52... Ke3 {[%clk
0:00:08.1]} 53. Nc4+ {[%clk 0:00:16]} 53... Kf4 {[%clk 0:00:08]} 54. h4 {[%clk
0:00:15.5]} 54... Kg4 {[%clk 0:00:08]} 55. Kd7 {[%clk 0:00:15.3]} 55... Kxh4
{[%clk 0:00:08.2]} 56. Ke6 {[%clk 0:00:13.1]} 56... Kxg5 {[%clk 0:00:08.4]} 57.
Ke5 {[%clk 0:00:13.2]} 57... Kg4 {[%clk 0:00:08.5]} 58. Ke4 {[%clk 0:00:13.2]}
58... g5 {[%clk 0:00:08.6]} 59. Kxd3 {[%clk 0:00:13.5]} 59... Kg3 {[%clk
0:00:08.4]} 60. Ne3 {[%clk 0:00:13.2]} 60... g4 {[%clk 0:00:08.6]} 61. Nxg4
{[%clk 0:00:12.9]} 1/2-1/2